{"text_format":"3","workbook":"xlsx","n_sheets":1,"sheets":["Faktur"],"not_rendered":{"defined_names":6},"read":"whole","date_system":"1900"}

{"sheet":"Faktur","index":0,"n_rows":26,"n_cols":7,"rows_kept":26,"merged":[[0,1,0,2],[1,1,1,2],[1,3,1,4],[1,5,1,6],[2,1,2,2],[2,3,2,4],[2,5,2,6],[3,1,3,2],[3,3,3,4],[4,1,4,2],[4,3,4,4],[5,3,5,4],[24,1,24,4],[25,1,25,4]]}
[null,"Nama Perusahaan"]
[null,"Alamat",null,"T: Nomor Telepon",null,"Email"]
[null,"Kota, Provinsi, Kode Pos",null,"F: Nomor Faks",null,"Situs web"]
[null,"Tagihkan Kepada:",null,{"$f":"\"Telepon:   \"","v":"Telepon:   "},null,"No. Faktur:"]
[null,"Alamat:",null,{"$f":"\"Faks:    \"","v":"Faks:    "},null,"Tanggal Faktur:"]
[{"$nulls":3},{"$f":"\"Email:   \"","v":"Email:   "}]
[null,{"$f":"\"Faktur Untuk: \"","v":"Faktur Untuk: "}]
[null,"No. Item","Deskripsi","Jml","Harga Satuan","Diskon","Harga"]
[{"$nulls":6},{"$f":"IFERROR((D9*E9)-F9,\"\")","v":0}]
[{"$nulls":6},0]
[{"$nulls":6},0]
[{"$nulls":6},0]
[{"$nulls":6},0]
[{"$nulls":6},0]
[{"$nulls":6},0]
[{"$nulls":6},0]
[{"$nulls":6},0]
[{"$nulls":6},0]
[{"$nulls":6},0]
[{"$nulls":6},0]
[{"$nulls":5},"Subtotal Faktur",{"$f":"SUM(FakturSederhana[Harga])","v":0}]
[{"$nulls":5},"Tarif Pajak"]
[{"$nulls":5},"Pajak Penjualan",{"$f":"IFERROR(G21*G22,\"\")","v":0}]
[{"$nulls":5},"Lainnya"]
[null,{"$f":"\"Buat semua cek terutang ditujukan kepada \"&nama_perusahaan&\".\"","v":"Buat semua cek terutang ditujukan kepada Nama Perusahaan."},{"$nulls":3},"Deposito Diterima"]
[null,"Total jatuh tempo di <#> hari. Akun yang jatuh tempo tunduk terhadap biaya layanan <#>% per bulan.",{"$nulls":3},"TOTAL",{"$f":"IFERROR((G21+G23+G24)-G25,\"\")","v":0}]